bitfinex-derivatives/quotes_BNBF0:USTF0_20250810
["timestamp","ask_amount","ask_price","bid_price","bid_amount"]
[1754819886535,1.11620008,801.63,801.11,0.5]
[1754819887338,1.11620008,801.64,801.11,0.5]
[1754819887540,1.11620008,801.49,801.11,0.5]
[1754819888538,1.11620008,801.5,801.11,0.5]
[1754819889334,1.11620008,801.48,801.11,0.5]
[1754819890438,1.11620008,801.52,801.11,0.5]
[1754819892540,1.11620008,801.5,801.11,0.5]
[1754819894240,1.11620008,801.48,801.11,0.5]
[1754819895538,1.11620008,801.47,801.11,0.5]
[1754819895842,1.11620008,801.45,801.11,0.5]
[1754819896140,1.11620008,801.48,801.11,0.5]
[1754819897445,1.11620008,801.47,801.11,0.5]
[1754819898350,1.11620008,801.46,801.11,0.5]
[1754819899649,1.11620008,801.45,801.11,0.5]
[1754819900150,1.11620008,801.51,801.11,0.5]
[1754819900350,1.11620008,801.48,801.11,0.5]
[1754819901546,1.11620008,801.47,801.11,0.5]
[1754819905752,1.11620008,801.46,801.11,0.5]
[1754819906253,1.11620008,801.65,801.11,0.5]
[1754819906452,1.11620008,801.64,801.11,0.5]
[1754819906858,1.11620008,801.67,801.11,0.5]
[1754819907154,1.11620008,801.66,801.11,0.5]
[1754819908456,1.11620008,801.74,801.11,0.5]
[1754819909961,1.11620008,801.71,801.11,0.5]
[1754819910162,1.11620008,801.76,801.07,0.336]
[1754819910362,1.11620008,801.76,801.0,0.5]
[1754819910856,1.11620008,801.75,801.0,0.5]
[1754819914264,1.11620008,801.74,801.0,0.5]
[1754819914665,1.11620008,801.75,801.0,0.5]
[1754819916266,1.11620008,801.54,801.0,0.5]
[1754819916762,1.11620008,801.54,801.01,0.5]
[1754819916966,1.11620008,801.52,801.01,0.5]
[1754819917172,1.11620008,801.38,801.01,0.5]
[1754819917467,1.11620008,801.37,801.01,0.5]
[1754819918664,1.11620008,801.23,801.01,0.5]
[1754819918866,1.67019988,801.39,801.01,0.5]
[1754819919067,1.67019988,801.41,801.01,0.5]
[1754819920662,1.67019988,801.4,801.01,0.5]
[1754819923263,1.67019988,801.42,801.01,0.5]
[1754819924570,1.67019988,801.38,801.01,0.5]
[1754819924871,1.67019988,801.34,800.72,0.5]
[1754819925367,1.67019988,801.35,800.72,0.5]
[1754819926271,1.67019988,801.38,800.72,0.5]
[1754819926568,1.67019988,801.39,800.72,0.5]
[1754819929369,1.67019988,801.4,800.72,0.5]
[1754819931374,1.67019988,801.41,800.72,0.5]
[1754819931578,1.67019988,801.39,800.72,0.5]
[1754819931878,1.67019988,801.41,800.88,0.297]
[1754819932173,1.67019988,801.41,800.78,0.293]
[1754819933274,1.67019988,801.49,800.92,0.5]
[1754819934274,1.67019988,801.52,800.92,0.5]
[1754819934779,1.67019988,801.56,800.92,0.5]
[1754819935479,1.67019988,801.57,800.92,0.5]
[1754819936278,1.67019988,801.59,800.92,0.5]
[1754819938673,1.67019988,801.6,800.92,0.5]
[1754819938878,1.67019988,801.62,800.92,0.5]
[1754819940078,1.67019988,801.59,800.92,0.5]
[1754819940273,1.67019988,801.68,800.93,0.297]
[1754819940479,1.67019988,801.71,801.13,0.5]
[1754819940677,1.67019988,801.74,801.13,0.5]
[1754819940978,1.67019988,801.76,801.13,0.5]
[1754819941174,1.67019988,801.78,801.13,0.5]
[1754819941378,1.67019988,801.77,801.13,0.5]
[1754819941578,1.67019988,801.75,801.13,0.5]
[1754819941979,1.67019988,801.72,801.13,0.5]
[1754819946181,1.67019988,801.82,801.13,0.5]
[1754819946480,1.67019988,801.82,801.19,0.297]
[1754819946681,1.67019988,801.82,801.16,0.5]
[1754819946877,1.67019988,801.82,801.2,0.258]
[1754819947077,1.67019988,801.82,801.16,0.5]
[1754819950484,1.67019988,801.79,801.16,0.5]
[1754819950685,1.67019988,801.75,801.21,0.291]
[1754819950980,1.67019988,801.72,801.16,0.5]
[1754819951980,1.67019988,801.68,801.16,0.5]
[1754819953789,1.67019988,801.68,801.22,0.291]
[1754819954086,1.67019988,801.68,801.16,0.5]
[1754819954483,1.67019988,801.68,801.2,0.291]
[1754819955284,1.67019988,801.69,801.2,0.291]
[1754819955787,1.67019988,801.71,801.2,0.291]
[1754819956490,1.67019988,801.53,801.2,0.291]
[1754819957085,1.67019988,801.54,801.2,0.291]
[1754819957891,1.67019988,801.55,801.2,0.291]
[1754819958591,1.67019988,801.55,801.16,0.5]
[1754819959388,1.67019988,801.54,801.16,0.5]
[1754819960288,1.67019988,801.53,801.16,0.5]
[1754819960992,1.67019988,801.51,801.16,0.5]
[1754819963288,1.67019988,801.52,801.16,0.5]
[1754819963490,1.67019988,801.51,801.16,0.5]
[1754819964294,1.67019988,801.5,801.16,0.5]
[1754819964589,1.67019988,801.53,801.16,0.5]
[1754819965792,1.67019988,801.5,801.16,0.5]
[1754819966190,1.67019988,801.55,801.16,0.5]
[1754819967896,1.67019988,801.54,801.16,0.5]
[1754819971896,1.67019988,801.59,801.16,0.5]
[1754819973396,1.67019988,801.59,801.48,0.5]
[1754819973597,2.79290881,802.08,801.48,0.5]
[1754819974393,1.67424682,802.46,801.48,0.5]
[1754819975093,1.67424682,802.41,801.48,0.5]
[1754819975900,1.67424682,802.39,801.48,0.5]
[1754819976399,1.67424682,802.4,801.48,0.5]
[1754819976804,1.67424682,802.39,801.48,0.5]
[1754819977004,1.67424682,802.36,801.48,0.5]
[1754819977301,1.67424682,802.24,801.48,0.5]
[1754819977501,1.67424682,802.31,801.48,0.5]
[1754819978500,1.67424682,802.36,801.48,0.5]
[1754819978700,1.67424682,802.34,801.48,0.5]
[1754819979405,1.67424682,802.39,801.48,0.5]
[1754819979705,1.67424682,802.35,801.48,0.5]
[1754819979907,1.67424682,802.31,801.48,0.5]
[1754819980419,1.67424682,802.32,801.48,0.5]
[1754819980603,1.67424682,802.35,801.48,0.5]
[1754819981502,1.67424682,802.39,801.48,0.5]
[1754819981803,1.67424682,802.38,801.48,0.5]
[1754819982608,1.67424682,802.41,801.48,0.5]
[1754819983403,1.67424682,802.43,801.48,0.5]
[1754819983607,0.21673263,803.1,801.48,0.5]
[1754819983608,1.67424682,802.44,801.48,0.5]
[1754819984408,1.67424682,802.46,801.48,0.5]
[1754819985409,1.67424682,802.48,801.48,0.5]
[1754819986410,1.67424682,802.44,801.48,0.5]
[1754819986607,1.67424682,802.45,801.48,0.5]
[1754819987508,1.67424682,802.46,801.48,0.5]
[1754819987712,1.67424682,802.48,801.48,0.5]
[1754819988512,1.67424682,802.49,801.48,0.5]
[1754819989708,1.67424682,802.44,801.48,0.5]
[1754819990510,1.67424682,802.45,801.48,0.5]
[1754819991016,1.67424682,802.47,801.48,0.5]
[1754819991211,1.67424682,802.61,801.39,0.35]
[1754819991417,1.67424682,802.54,801.35,0.5]
[1754819991614,0.67362741,802.53,800.98,0.5]
[1754819991813,1.67424682,802.54,800.99,0.7009898]
[1754819992014,0.67362741,802.53,801.0,0.7009898]
[1754819992213,1.67424682,802.54,801.01,0.7009898]
[1754819992418,1.67424682,802.42,800.98,0.5]
[1754819992719,1.67424682,802.4,800.99,0.70132474]
[1754819992919,1.67424682,802.4,801.0,0.70132474]
[1754819993118,1.67424682,802.4,800.98,0.5]
[1754819993119,1.67424682,802.4,801.01,0.70132474]
[1754819993314,1.67424682,802.4,801.0,0.35]
[1754819993519,1.67424682,802.39,801.01,0.70140278]
[1754819993820,1.67424682,802.4,801.0,0.35]
[1754819994018,1.67424682,802.4,801.01,0.70140278]
[1754819994218,1.67424682,802.4,801.02,0.70139329]
[1754819994519,1.67424682,802.4,801.0,0.35]
[1754819994718,1.67424682,802.4,801.01,0.70147875]
[1754819994917,1.67424682,802.4,801.02,0.70147875]
[1754819995119,1.67424682,802.4,801.0,0.35]
[1754819995313,1.67424682,802.39,801.01,0.70147865]
[1754819995618,1.67424682,802.39,801.02,0.70147865]
[1754819995916,1.67424682,802.39,801.0,0.35]
[1754819996114,1.67424682,802.39,801.01,0.7015729]
[1754819996320,1.67424682,802.56,801.02,0.7015729]
[1754819996519,2.34842474,802.55,801.03,0.7015729]
[1754819996815,0.67417792,802.54,801.04,0.7015729]
[1754819997018,0.67417792,802.53,801.05,0.7015729]
[1754819997219,0.67417792,802.52,801.06,0.7015729]
[1754819997420,0.21670024,803.16,801.0,0.35]
[1754819997421,0.67417792,802.51,801.07,0.7015729]
[1754819997616,0.67417792,802.5,801.08,0.7015729]
[1754819997818,0.67417792,802.49,801.09,0.7015729]
[1754819998017,0.67417792,802.49,801.0,0.35]
[1754819998018,0.67417792,802.48,801.1,0.7015729]
[1754819998221,0.67417792,802.47,801.11,0.7015729]
[1754819998418,0.67417792,802.46,801.12,0.7015729]
[1754819998618,0.67417792,802.45,801.13,0.7015729]
[1754819998823,1.67424682,802.52,801.14,0.7015729]
[1754819999020,0.6744146,802.51,801.15,0.7015729]
[1754819999317,0.6744146,802.5,801.16,0.7015729]
[1754819999622,1.67424682,802.48,801.17,0.7015729]
[1754819999824,0.6744146,802.47,801.02,0.5]
[1754820000018,0.6744146,802.46,801.03,0.70212539]
[1754820000320,0.6744146,802.45,801.04,0.70212539]
[1754820000518,0.6744146,802.44,801.05,0.70212539]
[1754820000718,0.21670024,803.16,801.06,0.70212539]
[1754820000719,0.6744146,802.43,801.06,0.70212539]
[1754820000919,0.6744146,802.42,801.07,0.70212539]
[1754820001223,0.6744146,802.41,801.08,0.70212539]
[1754820001520,1.67424682,802.39,801.09,0.70212539]
[1754820001722,1.67424682,802.23,800.98,0.5]
[1754820002020,1.67424682,802.23,800.99,0.70256339]
[1754820002218,1.67424682,802.23,801.0,0.348]
[1754820002418,1.67424682,802.16,800.98,0.5]
[1754820003124,1.67424682,802.15,800.91,0.348]
[1754820003324,1.67424682,802.11,800.91,0.348]
[1754820003523,1.67424682,802.03,800.91,0.348]
[1754820003722,1.67424682,802.01,800.84,0.5]
[1754820003924,1.67424682,802.01,800.85,0.7028377]
[1754820004120,1.67424682,802.01,800.86,0.7028377]
[1754820004319,1.67424682,802.01,800.84,0.5]
[1754820004524,1.67424682,802.01,800.85,0.70278828]
[1754820004724,1.67424682,802.01,800.86,0.70278828]
[1754820004925,1.67424682,802.01,800.84,0.5]
[1754820005126,1.67424682,802.01,800.85,0.70278188]
[1754820005328,1.67424682,802.01,800.86,0.70278188]
[1754820005624,1.67424682,802.01,800.84,0.5]
[1754820005826,1.67424682,802.01,800.85,0.70276971]
[1754820006122,1.67424682,802.01,800.86,0.70276971]
[1754820006427,1.67424682,801.9,800.84,0.5]
[1754820006827,1.67424682,801.9,800.85,0.348]
[1754820007126,1.67424682,801.9,800.83,0.5]
[1754820009026,1.67424682,801.89,800.83,0.5]
[1754820009929,1.67424682,801.86,800.83,0.5]
[1754820011826,1.67424682,801.82,800.83,0.5]
[1754820016231,1.67424682,801.86,800.83,0.5]
[1754820016432,1.67424682,801.89,800.83,0.5]
[1754820016632,1.67424682,801.88,800.83,0.5]
[1754820018933,1.67424682,801.87,800.83,0.5]
[1754820019533,1.67424682,801.88,800.83,0.5]
[1754820019737,1.67424682,801.9,800.83,0.5]
[1754820020535,1.67424682,801.89,800.83,0.5]
[1754820021437,1.67424682,801.91,800.83,0.5]
[1754820022937,1.67424682,801.93,800.83,0.5]
[1754820024740,1.67424682,801.94,800.83,0.5]
[1754820025036,1.67424682,802.03,800.83,0.5]
[1754820025341,1.67424682,802.13,800.84,0.7021908]
[1754820025541,1.67424682,802.12,800.85,0.7021908]
[1754820025741,1.67424682,802.12,800.86,0.7021908]
[1754820025941,1.67424682,802.12,800.87,0.7021908]
[1754820026137,1.67424682,802.15,800.88,0.7021908]
[1754820026442,1.67424682,802.1,800.89,0.7021908]
[1754820026637,1.67424682,802.1,800.9,0.7021908]
[1754820026841,1.67424682,802.1,800.83,0.5]
[1754820027041,1.67424682,802.1,800.84,0.70215987]
[1754820027341,1.67424682,802.09,801.13,0.5]
[1754820027539,1.67424682,802.1,801.13,0.5]
[1754820028337,1.67424682,802.09,801.13,0.5]
[1754820028641,1.67424682,802.08,801.13,0.5]
[1754820029344,1.67424682,802.07,801.13,0.5]
[1754820029844,1.67424682,802.05,801.13,0.5]
[1754820030245,1.67424682,801.97,801.13,0.5]
[1754820030541,1.67424682,801.98,801.13,0.5]
[1754820030741,1.67424682,801.94,801.13,0.5]
[1754820031445,1.67424682,801.93,801.13,0.5]
[1754820031641,1.67424682,801.95,801.13,0.5]
[1754820031842,1.67424682,801.97,801.13,0.5]
[1754820032241,1.67424682,801.96,801.13,0.5]
[1754820033142,1.67424682,801.95,801.13,0.5]
[1754820033545,1.67424682,801.93,801.13,0.5]
[1754820034345,1.67424682,801.92,801.13,0.5]
[1754820036046,1.67424682,801.98,801.13,0.5]
[1754820036345,1.67424682,802.11,801.13,0.5]
[1754820036948,1.67424682,802.12,801.13,0.5]
[1754820037650,1.67424682,802.11,801.13,0.5]
[1754820038249,2.79290881,802.71,801.13,0.5]
[1754820038250,1.67424682,802.1,801.13,0.5]
[1754820038445,1.67424682,802.09,801.13,0.5]
[1754820038849,1.67424682,802.1,801.13,0.5]
[1754820039048,1.67424682,802.09,801.13,0.5]
[1754820039547,1.67424682,802.08,801.13,0.5]
[1754820040448,1.67424682,802.07,801.13,0.5]
[1754820041353,1.67424682,802.06,801.13,0.5]
[1754820041553,1.67424682,802.04,801.13,0.5]
[1754820042561,1.67424682,802.03,801.13,0.5]
[1754820043463,1.67424682,802.01,801.13,0.5]
[1754820044564,1.67424682,801.99,801.13,0.5]
[1754820044965,1.67424682,801.98,801.13,0.5]
[1754820045565,1.67424682,801.96,801.13,0.5]
[1754820045762,3.91007233,802.85,801.13,0.5]
[1754820045763,1.67424682,801.91,801.13,0.5]
[1754820045965,1.67424682,801.94,801.13,0.5]
[1754820046162,1.67424682,801.93,801.13,0.5]
[1754820046466,1.67424682,802.02,800.92,0.2168204]
[1754820046963,1.67424682,801.82,800.92,0.2168204]
[1754820047166,1.67424682,801.66,800.92,0.2168204]
[1754820047367,1.67424682,801.63,800.92,0.2168204]
[1754820047766,1.67424682,801.64,800.92,0.2168204]
[1754820048367,1.67424682,801.63,800.92,0.2168204]
[1754820048664,1.67424682,801.6,800.92,0.2168204]
[1754820049366,1.67424682,801.75,800.92,0.2168204]
[1754820049569,1.67424682,801.68,800.92,0.5608204]
[1754820049767,1.67424682,801.68,800.92,0.2168204]
[1754820049969,1.67424682,801.69,800.92,0.2168204]
[1754820050163,1.67424682,801.64,800.92,0.2168204]
[1754820050470,1.67424682,801.63,800.92,0.2168204]
[1754820050966,1.67424682,801.63,800.92,0.5608204]
[1754820051181,1.67424682,801.63,800.92,0.2168204]
[1754820051468,1.67424682,801.62,800.92,0.2168204]
[1754820052268,1.67424682,801.63,800.92,0.2168204]
[1754820052468,1.67424682,801.62,800.92,0.2168204]
[1754820053270,1.67424682,801.63,800.92,0.2168204]
[1754820053565,1.67424682,801.62,800.92,0.2168204]
[1754820054168,1.67424682,801.6,800.92,0.2168204]
[1754820054669,1.67424682,801.59,800.92,0.2168204]
[1754820054865,1.67424682,801.49,800.92,0.2168204]
[1754820055067,1.67424682,801.46,800.92,0.2168204]
[1754820055465,1.67424682,801.47,800.92,0.2168204]
[1754820056170,1.67424682,801.46,800.92,0.2168204]
[1754820056371,1.67424682,801.52,800.92,0.2168204]
[1754820056570,1.67424682,801.53,800.92,0.2168204]
[1754820057169,1.67424682,801.51,800.92,0.2168204]
[1754820057872,1.67424682,801.57,800.92,0.2168204]
[1754820059069,1.67424682,801.58,800.92,0.2168204]
[1754820059369,1.67424682,801.6,800.92,0.2168204]
[1754820059672,1.67424682,801.59,800.92,0.2168204]
[1754820061172,1.67424682,801.66,800.92,0.2168204]
[1754820061573,1.67424682,801.63,800.92,0.2168204]
[1754820061768,1.67424682,801.61,800.92,0.2168204]
[1754820062273,1.67424682,801.65,800.92,0.2168204]
[1754820063373,1.67424682,801.6,800.92,0.2168204]
[1754820063669,1.67424682,801.61,800.92,0.2168204]
[1754820064375,1.67424682,801.5,800.92,0.2168204]
[1754820065976,3.91007233,802.66,800.92,0.2168204]
[1754820065977,1.67424682,801.52,800.92,0.2168204]
[1754820066377,1.67424682,801.36,800.92,0.2168204]
[1754820067078,1.67424682,801.35,800.92,0.2168204]
[1754820067276,1.67424682,801.33,800.92,0.2168204]
[1754820067481,1.67424682,801.39,800.92,0.2168204]
[1754820068481,1.67424682,801.4,800.92,0.2168204]
[1754820068976,1.67424682,801.39,800.92,0.2168204]
[1754820069381,1.67424682,801.4,800.92,0.2168204]
[1754820070278,1.67424682,801.43,800.92,0.2168204]
[1754820070978,1.67424682,801.45,800.92,0.2168204]
[1754820071380,1.67424682,801.53,800.92,0.2168204]
[1754820074079,1.67424682,801.52,800.92,0.2168204]
[1754820076287,1.67424682,801.53,800.92,0.2168204]
[1754820076982,1.67424682,801.61,800.92,0.2168204]
[1754820077186,1.67424682,801.62,800.92,0.2168204]
[1754820077685,1.67424682,801.63,800.92,0.2168204]
[1754820078183,1.67424682,801.62,800.92,0.2168204]
[1754820079290,1.67424682,801.63,800.92,0.2168204]
[1754820080893,1.67424682,801.62,800.92,0.2168204]
[1754820081093,1.67424682,801.6,800.92,0.2168204]
[1754820086195,1.67424682,801.73,800.92,0.2168204]
[1754820086600,1.67424682,801.75,800.92,0.2168204]
[1754820086799,1.67424682,801.68,800.92,0.2168204]
[1754820087095,1.67424682,801.7,800.92,0.2168204]
[1754820088399,1.67424682,801.69,800.92,0.2168204]
[1754820089297,1.67424682,801.67,800.92,0.2168204]
[1754820089495,1.67424682,801.68,800.92,0.2168204]
[1754820089897,1.67424682,801.7,800.92,0.2168204]
[1754820090897,1.67424682,801.69,800.92,0.2168204]
[1754820091499,1.67424682,801.68,800.92,0.2168204]
[1754820092002,1.67424682,801.69,800.92,0.2168204]
[1754820092302,1.67424682,801.68,800.92,0.2168204]
[1754820093299,1.67424682,801.67,800.92,0.2168204]
[1754820094408,1.67424682,801.66,800.92,0.2168204]
[1754820094604,1.67424682,801.71,800.92,0.2168204]
[1754820095306,1.67424682,801.7,800.92,0.2168204]
[1754820096203,3.91007233,802.65,800.92,0.2168204]
[1754820096204,1.67424682,801.54,800.92,0.2168204]
[1754820097408,1.67424682,801.53,800.92,0.2168204]
[1754820098908,1.67424682,801.49,800.92,0.2168204]
[1754820099607,1.67424682,801.48,800.92,0.2168204]
[1754820101314,1.67424682,801.47,800.92,0.2168204]
[1754820102414,1.67424682,801.46,800.92,0.2168204]
[1754820103320,1.67424682,801.45,800.92,0.2168204]
[1754820103513,1.67424682,801.51,800.92,0.2168204]
[1754820104221,1.67424682,801.49,800.92,0.2168204]
[1754820104420,1.67424682,801.48,800.92,0.2168204]
[1754820105218,1.67424682,801.47,800.92,0.2168204]
[1754820105423,1.67424682,801.46,800.92,0.2168204]
[1754820106417,1.67424682,801.48,800.92,0.2168204]
[1754820108828,1.67424682,801.47,800.92,0.2168204]
[1754820109524,1.67424682,801.46,800.92,0.2168204]
[1754820110428,1.67424682,801.47,800.92,0.2168204]
[1754820110629,1.67424682,801.46,800.92,0.2168204]
[1754820111324,1.67424682,801.47,800.92,0.2168204]
[1754820112326,1.67424682,801.49,800.92,0.2168204]
[1754820113426,1.67424682,801.41,800.92,0.2168204]
[1754820113628,0.11730405,801.4,800.92,0.2168204]
[1754820114628,2.79290881,801.96,800.92,0.2168204]
[1754820116628,2.79290881,801.97,800.92,0.2168204]
[1754820120331,2.79290881,801.99,800.92,0.2168204]
[1754820121936,2.79290881,802.0,800.92,0.2168204]
[1754820122932,2.79290881,802.02,800.92,0.2168204]
[1754820123436,2.79290881,802.01,800.92,0.2168204]
[1754820124035,2.79290881,802.02,800.92,0.2168204]
[1754820124533,2.79290881,802.01,800.92,0.2168204]
[1754820124932,3.91007233,802.25,800.92,0.2168204]
[1754820124933,3.48147329,802.0,800.92,0.2168204]
[1754820125134,0.68856448,801.99,800.92,0.2168204]
[1754820125336,2.79290881,802.0,800.92,0.2168204]
[1754820125534,2.79290881,801.98,800.92,0.2168204]
[1754820126136,2.79290881,802.12,800.92,0.2168204]
[1754820126341,0.6887859,802.11,800.92,0.2168204]
[1754820126542,2.79290881,802.03,800.92,0.2168204]
[1754820126741,0.6887859,802.02,800.92,0.2168204]
[1754820126937,0.6887859,802.01,800.92,0.2168204]
[1754820127138,0.6887859,802.0,800.92,0.2168204]
[1754820127341,0.6887859,801.99,800.92,0.2168204]
[1754820127544,0.6887859,801.98,800.92,0.2168204]
[1754820127745,0.6887859,801.97,800.92,0.2168204]
[1754820127939,0.6887859,801.96,800.92,0.2168204]
[1754820128144,0.6887859,801.95,800.92,0.2168204]
[1754820128340,0.6887859,801.94,800.92,0.2168204]
[1754820128543,0.6887859,801.93,800.92,0.2168204]
[1754820128744,0.6887859,801.92,800.92,0.2168204]
[1754820128942,0.6887859,801.91,800.92,0.2168204]
[1754820129145,0.6891009,801.9,800.92,0.2168204]
[1754820129442,2.79290881,802.04,800.92,0.2168204]
[1754820129641,0.68910685,802.03,800.92,0.2168204]
[1754820129845,0.68910685,802.02,800.92,0.2168204]
[1754820130045,0.68910685,802.01,800.92,0.2168204]
[1754820130345,0.68910685,802.0,800.92,0.2168204]
[1754820130543,0.68910685,801.99,800.92,0.2168204]
[1754820130748,0.68910685,801.98,800.92,0.2168204]
[1754820130946,0.68910685,801.97,800.92,0.2168204]
[1754820131149,3.91007233,802.44,800.92,0.2168204]
[1754820131347,0.67592314,802.43,800.92,0.2168204]
[1754820131548,0.67592314,802.42,800.92,0.2168204]
[1754820131749,0.67592314,802.41,800.92,0.2168204]
[1754820131945,0.67592314,802.4,800.92,0.2168204]
[1754820132151,0.67592314,802.39,800.92,0.2168204]
[1754820132450,0.67592314,802.38,800.93,0.70337952]
[1754820132651,0.67592314,802.37,800.94,0.70337952]
[1754820132851,0.67592314,802.36,800.95,0.70337952]
[1754820133047,0.67592314,802.35,800.96,0.70337952]
[1754820133251,0.67592314,802.34,800.92,0.2168204]
[1754820133548,0.67592314,802.33,800.93,0.70321379]
[1754820133747,0.67592314,802.33,800.92,0.2168204]
[1754820133748,1.67777077,801.8,800.94,0.70321379]
[1754820133951,1.67777077,801.8,800.95,0.70321379]
[1754820134148,1.67777077,801.8,800.92,0.2168204]
[1754820134452,1.67777077,801.81,800.93,0.70309586]
[1754820134748,1.67777077,801.81,800.94,0.70309586]
[1754820134952,1.67777077,801.81,800.95,0.70309586]
[1754820135252,1.67777077,801.82,800.92,0.2168204]
[1754820135449,3.91007233,803.15,800.93,0.7030275]
[1754820135450,1.67777077,801.81,800.93,0.7030275]
[1754820135649,1.67777077,801.81,800.94,0.7030275]
[1754820135850,1.67777077,801.81,800.92,0.2168204]
[1754820136052,1.67777077,801.81,800.93,0.70297728]
[1754820136247,1.67777077,801.96,800.94,0.70297728]
[1754820136550,1.67777077,801.95,800.95,0.70297728]
[1754820136752,1.67777077,801.95,800.96,0.70297728]
[1754820136953,1.67777077,801.95,800.97,0.70297728]
[1754820137154,1.67777077,801.84,800.98,0.70297728]
[1754820137449,1.67777077,801.79,800.99,0.70297728]
[1754820137653,1.67777077,801.8,801.0,0.70297728]
[1754820137953,1.67777077,801.96,801.01,0.70297728]
[1754820138249,1.67777077,801.96,800.92,0.2168204]
[1754820138250,1.67777077,801.97,801.02,0.70297728]
[1754820138455,1.67777077,802.06,801.22,0.35]
[1754820138651,1.67777077,802.06,801.23,0.70297728]
[1754820138855,1.67777077,802.06,801.22,0.35]
[1754820138856,1.67777077,802.06,801.24,0.70297728]
[1754820139155,1.67777077,802.09,801.29,0.5]
[1754820140053,1.67777077,802.07,801.29,0.5]
[1754820140255,1.67777077,802.09,801.29,0.5]
[1754820141056,1.67777077,802.11,801.29,0.5]
[1754820141356,1.67777077,802.13,801.29,0.5]
[1754820141753,1.67777077,802.11,801.29,0.5]
[1754820142254,1.67777077,802.13,801.29,0.5]
[1754820142956,1.67777077,802.12,801.29,0.5]
[1754820143154,1.67777077,802.15,801.29,0.5]
[1754820143354,1.67777077,802.16,801.29,0.5]
[1754820144155,1.67777077,802.18,801.29,0.5]
[1754820144756,1.67777077,802.19,801.29,0.5]
[1754820145361,1.67777077,802.28,801.3,0.69937821]
[1754820145561,1.67777077,802.28,801.31,0.69937821]
[1754820145761,1.67777077,802.28,801.32,0.69941915]
[1754820145962,1.67777077,802.29,801.29,0.5]
[1754820146162,1.67777077,802.29,801.3,0.69941915]
[1754820146359,1.67777077,802.21,801.29,0.5]
[1754820146558,1.67777077,802.22,801.29,0.5]
[1754820147259,1.67777077,802.24,801.29,0.5]
[1754820147460,1.67777077,802.3,801.29,0.5]
[1754820147666,1.67777077,802.32,801.29,0.5]
[1754820148263,1.67777077,802.37,801.29,0.5]
[1754820148460,1.67777077,802.38,801.29,0.5]
[1754820149164,1.67777077,802.4,801.29,0.5]
[1754820150261,1.67777077,802.43,801.29,0.5]
[1754820151269,1.67777077,802.45,801.29,0.5]
[1754820152163,1.67777077,802.47,801.29,0.5]
[1754820153163,1.67777077,802.49,801.29,0.5]
[1754820153468,1.67777077,802.48,801.29,0.5]
[1754820153765,1.67777077,802.45,801.34,0.5]
[1754820154167,1.67777077,802.46,801.34,0.5]
[1754820154769,1.67777077,802.41,801.34,0.5]
[1754820155170,1.67777077,802.38,801.34,0.5]
[1754820155371,1.67777077,802.36,801.34,0.5]
[1754820156370,1.67777077,802.37,801.34,0.5]
[1754820156571,0.21670024,803.16,801.34,0.5]
[1754820156572,1.67777077,802.33,801.34,0.5]
[1754820157266,1.67777077,802.34,801.34,0.5]
[1754820157471,1.67777077,802.33,801.34,0.5]
[1754820158271,1.67777077,802.29,801.34,0.5]
[1754820158471,1.67777077,802.3,801.34,0.5]
[1754820159969,1.67777077,802.5,801.34,0.5]
[1754820161372,0.21670024,803.16,801.34,0.5]
[1754820161373,1.67777077,802.51,801.34,0.5]
[1754820161676,1.67777077,802.49,801.34,0.5]
[1754820161875,1.67777077,802.46,801.34,0.5]
[1754820166177,1.67777077,802.45,801.34,0.5]
[1754820169386,1.67777077,802.44,801.34,0.5]
[1754820169583,1.67777077,802.45,801.34,0.5]
[1754820169780,1.67777077,802.29,801.34,0.5]
[1754820170182,1.67777077,802.28,801.24,0.35]
[1754820170380,1.67777077,802.28,801.23,0.5]
[1754820171588,1.67777077,802.24,801.23,0.5]
[1754820171785,1.67777077,802.2,801.23,0.5]
[1754820172002,1.67777077,802.18,801.23,0.5]
[1754820172383,1.67777077,802.17,801.23,0.5]
[1754820172887,1.67777077,802.18,801.23,0.5]
[1754820173292,1.67777077,802.17,801.23,0.5]
[1754820173590,1.67777077,802.19,801.23,0.5]
[1754820173887,1.67777077,802.19,801.16,0.5]
[1754820174186,1.67777077,802.18,801.16,0.5]
[1754820175287,1.67777077,802.17,801.16,0.5]
[1754820176292,1.67777077,802.33,801.17,0.69883005]